fUSD/lending_fUSD_20250302
["ID","MTS","AMOUNT","RATE_DAILY","PERIOD"]
[355147580,1740936633928,-500.0,0.00024657,2]
[355147582,1740936633938,-500.0,0.00024657,2]
[355147585,1740936633949,-1287.52,0.00024657,2]
[355147587,1740936633959,-500.0,0.00024657,2]
[355147589,1740936633969,-500.0,0.00024657,2]
[355147590,1740936633978,-500.0,0.00024657,2]
[355147592,1740936633988,-691.44,0.00024657,2]
[355147594,1740936633998,-1137.27,0.00024657,2]
[355147596,1740936634009,-500.0,0.00024657,2]
[355147599,1740936634020,-975.02,0.00024657,2]
[355147601,1740936634030,-500.0,0.00024657,2]
[355147602,1740936634040,-501.94083038,0.00024657,2]
[355147604,1740936634050,-502.46614023,0.00024657,2]
[355147607,1740936634060,-1326.84,0.00024657,2]
[355147608,1740936634070,-500.0,0.00024657,2]
[355147610,1740936634080,-501.11917268,0.00024657,2]
[355147613,1740936634090,-500.0,0.00024657,2]
[355147615,1740936634101,-601.46,0.00024657,2]
[355147617,1740936634115,-500.0,0.00024657,2]
[355147619,1740936634126,-1957.9,0.00024657,2]
[355147621,1740936634137,-8310.8,0.00024657,2]
[355147623,1740936634148,-810.66,0.00024657,2]
[355147625,1740936634159,-799.92,0.00024657,2]
[355147627,1740936634170,-500.0,0.00024657,2]
[355147629,1740936634181,-500.0,0.00024657,2]
[355147631,1740936634191,-1401.29,0.00024657,2]
[355147633,1740936634202,-500.0,0.00024657,2]
[355147635,1740936634212,-500.0,0.00024657,2]
[355147637,1740936634223,-1973.31,0.00024657,2]
[355147639,1740936634235,-775.25,0.00024657,2]
[355147641,1740936634245,-313.24321838,0.00024657,2]
[355147643,1740936634255,-7254.96,0.00024657,2]
[355147644,1740936634266,-510.65504113,0.00024657,2]
[355147646,1740936634277,-500.0,0.00024657,2]
[355147648,1740936634288,-502.60691257,0.00024728,3]
[355147650,1740936634299,-614.59,0.00024788,2]
[355147652,1740936634309,-2723.45964109,0.00024798,2]
[355147654,1740936634321,-170.79066141,0.00024798,2]
[355147656,1740936634332,-2305.69924376,0.00024798,2]
[355147658,1740936634342,-163.98364472,0.00024798,2]
[355147660,1740936634353,-317.4349,0.00024798,2]
[355147662,1740936634366,-11786.0184,0.00024798,2]
[355147664,1740936634378,-5934.0205,0.00024799,2]
[355147666,1740936634388,-318.11654874,0.0002483,2]
[355147668,1740936634398,-500.0,0.00024897,2]
[355147670,1740936634407,-500.0,0.00024897,2]
[355147672,1740936634417,-505.79,0.00024897,2]
[355147675,1740936634427,-500.0,0.00024897,2]
[355147676,1740936634437,-500.0,0.00024898,2]
[355147678,1740936634447,-524.85,0.00024898,2]
[355147680,1740936634457,-500.0,0.00024898,2]
[355147683,1740936634467,-500.0,0.00024898,2]
[355147685,1740936634477,-500.0,0.00024898,2]
[355147687,1740936634489,-500.0,0.00024898,2]
[355147689,1740936634499,-500.0,0.00024898,2]
[355147691,1740936634508,-500.0,0.00024898,2]
[355147693,1740936634519,-500.0,0.00024898,2]
[355147695,1740936634532,-500.0,0.00024898,2]
[355147697,1740936634541,-500.0,0.00024898,2]
[355147698,1740936634551,-500.0,0.00024898,2]
[355147701,1740936634561,-500.0,0.00024898,2]
[355147703,1740936634572,-500.0,0.00024898,2]
[355147705,1740936634582,-543.66,0.00024898,2]
[355147707,1740936634593,-500.0,0.00024898,2]
[355147709,1740936634604,-500.0,0.00024898,2]
[355147711,1740936634617,-500.0,0.00024898,2]
[355147713,1740936634628,-500.0,0.00024898,2]
[355147715,1740936634639,-500.0,0.00024898,2]
[355147717,1740936634650,-500.0,0.00024898,2]
[355147719,1740936634659,-500.0,0.00024898,2]
[355147721,1740936634669,-500.0,0.00024898,2]
[355147723,1740936634680,-500.0,0.00024898,2]
[355147725,1740936634690,-500.0,0.00024898,2]
[355147726,1740936634700,-500.0,0.00024898,2]
[355147728,1740936634709,-500.0,0.00024898,2]
[355147730,1740936634719,-600.65297947,0.00024898,2]
[355147733,1740936634729,-496.17,0.00024898,2]
[355147735,1740936634739,-500.0,0.00024898,2]
[355147737,1740936634750,-500.0,0.00024898,2]
[355147739,1740936634760,-500.0,0.00024898,2]
[355147741,1740936634770,-500.0,0.00024898,2]
[355147743,1740936634780,-500.0,0.00024898,2]
[355147745,1740936634790,-500.0,0.00024898,2]
[355147747,1740936634800,-500.0,0.00024898,2]
[355147749,1740936634810,-542.69,0.00024898,2]
[355147751,1740936634820,-500.0,0.00024898,2]
[355147753,1740936634830,-500.0,0.00024898,2]
[355147755,1740936634840,-504.76041051,0.00024898,2]
[355147757,1740936634850,-500.0,0.00024898,2]
[355147759,1740936634862,-500.0,0.00024898,2]
[355147761,1740936634871,-269.61009409,0.00024898,2]
[355147763,1740936634881,-500.0,0.00024898,2]
[355147765,1740936634891,-500.0,0.00024898,2]
[355147767,1740936634900,-500.0,0.00024898,2]
[355147769,1740936634910,-500.0,0.00024898,2]
[355147771,1740936634920,-500.0,0.00024898,2]
[355147773,1740936634930,-591.35640294,0.00024898,2]
[355147775,1740936634939,-500.0,0.00024898,2]
[355147777,1740936634949,-500.0,0.00024898,2]
[355147779,1740936634959,-500.0,0.00024898,2]
[355147781,1740936634970,-500.0,0.00024898,2]
[355147783,1740936634980,-500.0,0.00024898,2]
[355147785,1740936634990,-520.16,0.00024898,2]
[355147787,1740936635000,-500.0,0.00024898,2]
[355147789,1740936635012,-500.0,0.00024898,2]
[355147791,1740936635023,-501.98725605,0.00024898,2]
[355147793,1740936635033,-500.0,0.00024898,2]
[355147795,1740936635044,-501.4076539,0.00024898,2]
[355147797,1740936635054,-500.0,0.00024898,2]
[355147799,1740936635064,-500.0,0.00024898,2]
[355147801,1740936635074,-500.0,0.00024898,2]
[355147803,1740936635084,-500.0,0.00024898,2]
[355147805,1740936635093,-500.0,0.00024898,2]
[355147807,1740936635103,-500.0,0.00024898,2]
[355147809,1740936635115,-500.0,0.00024898,2]
[355147811,1740936635124,-500.0,0.00024898,2]
[355147813,1740936635134,-330.77517699,0.00024898,2]
[355147815,1740936635145,-500.0,0.00024898,2]
[355147817,1740936635155,-508.41983529,0.00024898,2]
[355147819,1740936635165,-500.0,0.00024898,2]
[355147821,1740936635175,-500.0,0.00024898,2]
[355147823,1740936635185,-500.0,0.00024898,2]
[355147825,1740936635195,-500.0,0.00024898,2]
[355147827,1740936635205,-500.0,0.00024898,2]
[355147829,1740936635215,-500.0,0.00024898,2]
[355147831,1740936635225,-587.3,0.00024898,2]
[355147833,1740936635234,-500.0,0.00024898,2]
[355147835,1740936635243,-500.0,0.00024898,2]
[355147837,1740936635253,-500.0,0.00024898,2]
[355147839,1740936635262,-500.0,0.00024898,2]
[355147841,1740936635271,-500.0,0.00024898,2]
[355147843,1740936635281,-500.0,0.00024898,2]
[355147845,1740936635290,-583.26,0.00024898,2]
[355147847,1740936635300,-500.0,0.00024898,2]
[355147849,1740936635310,-500.0,0.00024898,2]
[355147851,1740936635320,-500.0,0.00024898,2]
[355147853,1740936635330,-500.0,0.00024898,2]
[355147855,1740936635340,-500.0,0.00024898,2]
[355147857,1740936635350,-500.0,0.00024898,2]
[355147859,1740936635363,-500.0,0.00024898,2]
[355147861,1740936635373,-500.0,0.00024898,2]
[355147863,1740936635383,-500.0,0.00024898,2]
[355147865,1740936635393,-500.0,0.00024898,2]
[355147867,1740936635404,-557.30888902,0.00024898,2]
[355147869,1740936635414,-502.01287773,0.00024898,2]
[355147871,1740936635423,-500.0,0.00024898,2]
[355147873,1740936635434,-500.0,0.00024898,2]
[355147875,1740936635443,-500.0,0.00024898,2]
[355147877,1740936635453,-500.0,0.00024898,2]
[355147879,1740936635463,-500.0,0.00024898,2]
[355147880,1740936635472,-500.0,0.00024898,2]
[355147883,1740936635484,-501.15017159,0.00024898,2]
[355147885,1740936635495,-604.24103084,0.00024898,2]
[355147887,1740936635505,-500.0,0.00024898,2]
[355147889,1740936635514,-500.0,0.00024898,2]
[355147891,1740936635527,-500.0,0.00024898,2]
[355147893,1740936635538,-500.0,0.00024898,2]
[355147895,1740936635548,-527.29,0.00024898,2]
[355147897,1740936635558,-527.87708637,0.00024898,2]
[355147899,1740936635569,-500.87929708,0.00024898,2]
[355147901,1740936635579,-165.87163185,0.00024898,2]
[355147903,1740936635589,-500.0,0.00024898,2]
[355147905,1740936635600,-500.0,0.00024898,2]
[355147907,1740936635612,-500.0,0.00024898,2]
[355147909,1740936635622,-500.0,0.00024898,2]
[355147911,1740936635632,-500.0,0.00024898,2]
[355147913,1740936635642,-500.0,0.00024898,2]
[355147915,1740936635652,-500.0,0.00024898,2]
[355147917,1740936635661,-264.95819172,0.00024898,2]
[355147919,1740936635671,-500.0,0.00024898,2]
[355147921,1740936635681,-500.0,0.00024898,2]
[355147923,1740936635690,-500.0,0.00024898,2]
[355147925,1740936635700,-500.0,0.00024898,2]
[355147927,1740936635709,-500.0,0.00024898,2]
[355147929,1740936635719,-500.0,0.00024898,2]
[355147931,1740936635729,-500.0,0.00024898,2]
[355147933,1740936635739,-500.0,0.00024898,2]
[355147935,1740936635749,-500.0,0.00024898,2]
[355147937,1740936635759,-500.0,0.00024898,2]
[355147939,1740936635769,-500.0,0.00024898,2]
[355147941,1740936635779,-500.0,0.00024898,2]
[355147943,1740936635789,-500.0,0.00024898,2]
[355147945,1740936635798,-500.0,0.00024898,2]
[355147947,1740936635809,-500.0,0.00024898,2]
[355147949,1740936635819,-500.0,0.00024898,2]
[355147951,1740936635829,-500.0,0.00024898,2]
[355147953,1740936635839,-500.0,0.00024898,2]
[355147955,1740936635848,-500.0,0.00024898,2]
[355147957,1740936635859,-560.95,0.00024898,2]
[355147959,1740936635869,-500.0,0.00024898,2]
[355147961,1740936635878,-959.76,0.00024898,2]
[355147963,1740936635888,-1153.41,0.00024898,2]
[355147965,1740936635898,-2270.13,0.00024898,2]
[355147967,1740936635907,-500.0,0.00024898,2]
[355147969,1740936635920,-1000.0,0.00024898,2]
[355147971,1740936635930,-500.0,0.00024898,2]
[355147973,1740936635940,-500.0,0.00024898,2]
[355147975,1740936635949,-1367.43,0.00024898,2]
[355147977,1740936635959,-500.0,0.00024898,2]
[355147979,1740936635969,-500.0,0.00024898,2]
[355147981,1740936635979,-1489.98,0.00024898,2]
[355147983,1740936635989,-500.0,0.00024898,2]
[355147985,1740936635998,-500.0,0.00024898,2]
[355147987,1740936636008,-500.0,0.00024898,2]
[355147989,1740936636018,-637.17,0.00024898,2]
[355147991,1740936636028,-504.63,0.00024898,2]
[355147993,1740936636038,-500.0,0.00024898,2]
[355147995,1740936636047,-500.0,0.00024898,2]
[355147997,1740936636057,-1048.52,0.00024898,2]
[355147999,1740936636068,-500.0,0.00024898,2]
[355148002,1740936636077,-2495.65,0.00024898,2]
[355148003,1740936636087,-500.0,0.00024898,2]
[355148006,1740936636097,-592.96,0.00024898,2]
[355148007,1740936636108,-500.0,0.00024898,2]
[355148009,1740936636118,-2584.12,0.00024898,2]
[355148011,1740936636128,-634.06,0.00024898,2]
[355148014,1740936636138,-500.0,0.00024898,2]
[355148016,1740936636148,-500.0,0.00024898,2]
[355148018,1740936636158,-500.0,0.00024898,2]
[355148020,1740936636168,-500.0,0.00024898,2]
[355148022,1740936636177,-1864.87,0.00024898,2]
[355148024,1740936636195,-514.07774589,0.00024898,2]
[355148026,1740936636213,-500.0,0.00024898,2]
[355148028,1740936636224,-900.18,0.00024898,2]
[355148029,1740936636234,-500.0,0.00024898,2]
[355148031,1740936636243,-828.36,0.00024898,2]
[355148034,1740936636254,-1132.79,0.00024898,2]
[355148036,1740936636264,-656.73,0.00024898,2]
[355148038,1740936636275,-290.62,0.00024898,2]
[355148040,1740936636285,-500.0,0.00024898,2]
[355148042,1740936636295,-985.57,0.00024898,2]
[355148044,1740936636305,-764.79,0.00024898,2]
[355148046,1740936636314,-500.0,0.00024898,2]
[355148048,1740936636324,-500.0,0.00024898,2]
[355148049,1740936636335,-500.0,0.00024898,2]
[355148050,1740936636345,-500.0,0.00024898,2]
[355148051,1740936636355,-537.49,0.00024898,2]
[355148052,1740936636366,-500.0,0.00024898,2]
[355148053,1740936636376,-500.0,0.00024898,2]
[355148054,1740936636386,-500.0,0.00024898,2]
[355148055,1740936636398,-1124.47,0.00024898,2]
[355148056,1740936636408,-500.0,0.00024898,2]
[355148057,1740936636418,-500.0,0.00024898,2]
[355148058,1740936636427,-500.0,0.00024898,2]
[355148059,1740936636437,-708.04,0.00024899,2]
[355148060,1740936636446,-500.0,0.00024899,2]
[355148061,1740936636456,-500.0,0.00024899,2]
[355148062,1740936636466,-714.91,0.00024899,2]
[355148063,1740936636476,-500.0,0.00024899,2]
[355148065,1740936636488,-500.0,0.00024899,2]
[355148067,1740936636498,-500.0,0.00024899,2]
[355148069,1740936636508,-500.0,0.00024899,2]
[355148071,1740936636519,-500.0,0.00024899,2]
[355148073,1740936636531,-503.38685803,0.00024899,2]
[355148075,1740936636540,-500.0,0.00024899,2]
[355148077,1740936636550,-555.82,0.00024899,2]
[355148079,1740936636560,-500.0,0.00024899,2]
[355148081,1740936636570,-609.57,0.00024899,2]
[355148083,1740936636581,-722.13,0.00024899,2]
[355148085,1740936636592,-500.0,0.00024899,2]
[355148087,1740936636604,-500.0,0.00024899,2]
[355148089,1740936636615,-500.0,0.00024899,2]
[355148091,1740936636625,-784.49,0.00024899,2]
[355148093,1740936636635,-500.0,0.00024899,2]
[355148094,1740936636645,-500.0,0.00024899,2]
[355148097,1740936636655,-500.0,0.00024899,2]
[355148099,1740936636665,-500.0,0.00024899,2]
[355148101,1740936636674,-796.39,0.00024899,2]
[355148102,1740936636684,-500.0,0.00024899,2]
[355148104,1740936636694,-500.0,0.00024899,2]
[355148107,1740936636704,-783.83,0.00024899,2]
[355148108,1740936636714,-197.38358798,0.00024899,2]
[355148110,1740936636723,-500.0,0.00024899,2]
[355148112,1740936636733,-500.0,0.00024899,2]
[355148115,1740936636743,-500.0,0.00024899,2]
[355148116,1740936636753,-500.0,0.00024899,2]
[355148140,1740936636974,-595.44,0.00024899,2]
[355148142,1740936636986,-684.73,0.00024899,2]
[355148144,1740936636998,-614.23,0.00024899,2]
[355148146,1740936637008,-500.0,0.00024899,2]
[355148148,1740936637019,-706.47,0.00024899,2]
[355148150,1740936637029,-500.0,0.00024899,2]
[355148152,1740936637038,-500.0,0.00024899,2]
[355148154,1740936637048,-500.0,0.00024899,2]
[355148156,1740936637058,-500.0,0.00024899,2]
[355148158,1740936637071,-500.0,0.00024899,2]
[355148160,1740936637082,-500.0,0.00024899,2]
[355148162,1740936637091,-500.0,0.00024899,2]
[355148164,1740936637102,-500.0,0.00024899,2]
[355148166,1740936637114,-500.0,0.00024899,2]
[355148168,1740936637124,-500.0,0.00024899,2]
[355148171,1740936637134,-500.0,0.00024899,2]
[355148172,1740936637144,-500.0,0.00024899,2]
[355148175,1740936637155,-571.71,0.00024899,2]
[355148177,1740936637165,-500.0,0.00024899,2]
[355148179,1740936637175,-500.0,0.00024899,2]
[355148181,1740936637185,-595.9,0.00024899,2]
[355148183,1740936637194,-500.0,0.00024899,2]
[355148185,1740936637204,-825.14,0.00024899,2]
[355148187,1740936637214,-853.07,0.00024899,2]
[355148189,1740936637225,-902.34,0.00024899,2]
[355148191,1740936637235,-671.39,0.00024899,2]
[355148193,1740936637245,-500.0,0.00024899,2]
[355148195,1740936637255,-846.77,0.00024899,2]
[355148197,1740936637265,-500.0,0.00024899,2]
[355148199,1740936637275,-889.33,0.00024899,2]
[355148201,1740936637286,-723.76,0.00024899,2]
[355148203,1740936637296,-986.05,0.00024899,2]
[355148205,1740936637306,-511.89,0.00024899,2]
[355148207,1740936637316,-1272.09,0.00024899,2]
[355148209,1740936637325,-552.48,0.00024899,2]
[355148211,1740936637335,-500.0,0.000249,9]
[355148213,1740936637346,-200.0,0.00024912,2]
[355148215,1740936637359,-200.0,0.00024912,2]
[355148218,1740936637370,-6982.58755618,0.00024912,2]
[355148220,1740936637380,-610.2,0.0002493,2]
[355148222,1740936637390,-1023.37,0.0002493,2]
[355148224,1740936637401,-500.0,0.0002493,2]
[355148226,1740936637411,-1363.34,0.0002493,2]
[355148228,1740936637422,-1381.45,0.0002493,2]
[355148230,1740936637431,-338.675155,0.0002493,2]
[355148232,1740936637442,-943.25,0.0002493,2]
[355148234,1740936637452,-1870.42,0.0002493,2]
[355148236,1740936637463,-500.0,0.0002493,2]
[355148238,1740936637473,-1107.04,0.0002493,2]
[355148240,1740936637488,-355.414101,0.0002493,2]
[355148242,1740936637499,-153.088695,0.0002493,2]
[355148244,1740936637510,-2678.19,0.0002493,2]
[355148246,1740936637523,-1356.29,0.0002493,2]
[355148248,1740936637538,-150.369306,0.0002493,2]
[355148250,1740936637550,-1871.2,0.0002493,2]
[355148252,1740936637565,-1213.06,0.0002493,2]
[355148254,1740936637577,-1601.31,0.0002493,2]
[355148256,1740936637590,-1696.09,0.0002493,2]
[355148260,1740936637604,-925.66,0.0002493,2]
[355148263,1740936637623,-1548.63,0.0002493,2]
[355148266,1740936637636,-994.45,0.0002493,2]
[355148271,1740936637649,-1838.97,0.0002493,2]
[355148275,1740936637662,-2241.09,0.0002493,2]
[355148278,1740936637677,-1192.77,0.0002493,2]
[355148282,1740936637692,-1027.42,0.0002493,2]
[355148285,1740936637704,-1424.18,0.0002493,2]
[355148288,1740936637717,-613.43,0.0002493,2]
[355148290,1740936637729,-500.0,0.0002493,2]
[355148292,1740936637742,-1363.11,0.0002493,2]
[355148297,1740936637756,-500.0,0.0002493,2]
[355148301,1740936637774,-618.55,0.0002493,2]
[355148306,1740936637789,-647.85,0.0002493,2]
[355148309,1740936637803,-1050.23,0.0002493,2]
[355148312,1740936637816,-500.0,0.0002493,2]
[355148316,1740936637829,-623.46,0.0002493,2]
[355148319,1740936637843,-500.0,0.0002493,2]
[355148320,1740936637855,-500.0,0.00024931,2]
[355148323,1740936637873,-500.0,0.00024931,2]
[355148325,1740936637886,-560.62,0.00024931,2]
[355148327,1740936637897,-500.0,0.00024931,2]
[355148329,1740936637909,-563.66,0.00024931,2]
[355148331,1740936637922,-500.0,0.00024931,2]
[355148333,1740936637933,-601.08,0.00024931,2]
[355148335,1740936637943,-500.0,0.00024931,2]
[355148337,1740936637954,-500.0,0.00024931,2]
[355148339,1740936637965,-500.0,0.00024931,2]
[355148341,1740936637979,-500.0,0.00024931,2]
[355148342,1740936637990,-500.0,0.00024931,2]
[355148345,1740936638001,-539.3,0.00024931,2]
[355148347,1740936638012,-500.0,0.00024931,2]
[355148348,1740936638022,-500.14,0.00024931,2]
[355148351,1740936638032,-563.88992918,0.00024931,2]
[355148353,1740936638043,-500.0,0.00024931,2]
[355148355,1740936638053,-500.0,0.00024931,2]
[355148357,1740936638065,-500.0,0.00024931,2]
[355148359,1740936638075,-584.1,0.00024931,2]
[355148361,1740936638087,-500.0,0.00024931,2]
[355148363,1740936638098,-500.0,0.00024931,2]
[355148365,1740936638109,-545.66,0.00024931,2]
[355148367,1740936638119,-500.0,0.00024931,2]
[355148368,1740936638130,-335.30164485,0.00024931,2]
[355148371,1740936638141,-500.0,0.00024931,2]
[355148373,1740936638152,-500.0,0.00024931,2]
[355148375,1740936638163,-500.0,0.00024931,2]
[355148377,1740936638174,-500.0,0.00024931,2]
[355148379,1740936638185,-500.0,0.00024931,2]
[355148381,1740936638196,-486.70736689,0.00024931,2]
[355148383,1740936638207,-500.0,0.00024931,2]
[355148385,1740936638218,-500.0,0.00024931,2]
[355148387,1740936638231,-500.0,0.00024931,2]
[355148389,1740936638243,-500.0,0.00024931,2]
[355148391,1740936638253,-526.45,0.00024931,2]
[355148393,1740936638264,-500.0,0.00024931,2]
[355148395,1740936638276,-561.12,0.00024931,2]
[355148397,1740936638288,-500.0,0.00024931,2]
[355148399,1740936638298,-533.44,0.00024931,2]
[355148401,1740936638309,-748.22,0.00024931,2]
[355148403,1740936638319,-500.0,0.00024931,2]
[355148405,1740936638331,-500.0,0.00024931,2]
[355148407,1740936638341,-500.0,0.00024931,2]
[355148410,1740936638352,-845.83,0.00024931,2]
[355148412,1740936638364,-911.47,0.00024931,2]
[355148413,1740936638374,-551.99,0.00024931,2]
[355148417,1740936638384,-500.0,0.00024931,2]
[355148418,1740936638394,-823.11,0.00024931,2]
[355148420,1740936638404,-786.8,0.00024931,2]
[355148422,1740936638414,-500.0,0.00024931,2]
[355148424,1740936638423,-1495.84,0.00024931,2]
[355148426,1740936638433,-500.0,0.00024931,2]
[355148429,1740936638443,-597.31,0.00024931,2]
[355148432,1740936638452,-688.82,0.00024931,2]
[355148435,1740936638462,-684.05,0.00024931,2]
[355148438,1740936638473,-500.0,0.00024931,2]
[355148441,1740936638486,-947.42,0.00024931,2]
[355148443,1740936638496,-1251.58,0.00024931,2]
[355148444,1740936638506,-500.0,0.00024931,2]
[355148447,1740936638517,-1020.64,0.00024931,2]
[355148449,1740936638529,-2345.36,0.00024931,2]
[355148451,1740936638541,-1562.13,0.00024931,2]
[355148453,1740936638551,-500.0,0.00024931,2]
[355148455,1740936638561,-500.0,0.00024931,2]
[355148456,1740936638570,-1688.5,0.00024931,2]
[355148458,1740936638581,-1057.44,0.00024931,2]
[355148461,1740936638592,-1830.8,0.00024931,2]
[355148463,1740936638603,-1336.41,0.00024931,2]
[355148465,1740936638616,-767.39,0.00024931,2]
[355148467,1740936638627,-2213.46,0.00024931,2]
[355148469,1740936638637,-500.0,0.00024931,2]
[355148471,1740936638648,-1366.85,0.00024931,2]
[355148473,1740936638658,-500.0,0.00024931,2]
[355148475,1740936638668,-500.0,0.00024931,2]
[355148477,1740936638679,-688.32,0.00024931,2]
[355148479,1740936638692,-2063.11,0.00024931,2]
[355148481,1740936638703,-500.0,0.00024931,2]
[355148483,1740936638714,-500.0,0.00024931,2]
[355148485,1740936638723,-500.0,0.00024931,2]
[355148487,1740936638734,-500.0,0.00024931,2]
[355148489,1740936638745,-620.51,0.00024931,2]
[355148491,1740936638756,-1466.04,0.00024931,2]
[355148494,1740936638767,-518.56,0.00024931,2]
[355148496,1740936638778,-1099.43,0.00024931,2]
[355148498,1740936638789,-1231.49,0.00024931,2]
[355148500,1740936638801,-500.0,0.00024931,2]
[355148502,1740936638812,-500.0,0.00024931,2]
[355148504,1740936638824,-565.79,0.00024931,2]
[355148506,1740936638835,-594.39,0.00024931,2]
[355148508,1740936638846,-500.0,0.00024931,2]
[355148510,1740936638860,-1282.11,0.00024931,2]
[355148512,1740936638871,-500.0,0.00024931,2]
[355148514,1740936638881,-500.0,0.00024931,2]
[355148516,1740936638892,-500.0,0.00024931,2]
[355148518,1740936638903,-1287.52,0.00024931,2]
[355148520,1740936638913,-691.44,0.00024931,2]
[355148522,1740936638923,-1137.27,0.00024931,2]
[355148524,1740936638934,-500.0,0.00024931,2]
[355148526,1740936638944,-975.02,0.00024931,2]
[355148528,1740936638956,-500.0,0.00024931,2]
[355148530,1740936638967,-1326.84,0.00024931,2]
[355148532,1740936638977,-229.80708672,0.00024931,2]
[355148566,1740936639349,-270.19291328,0.00024931,2]
[355148568,1740936639361,-601.46,0.00024931,2]
[355148570,1740936639373,-1957.9,0.00024931,2]
[355148572,1740936639386,-8310.8,0.00024931,2]
[355148574,1740936639397,-810.66,0.00024931,2]
[355148576,1740936639412,-799.92,0.00024931,2]
[355148578,1740936639424,-500.0,0.00024931,2]
[355148580,1740936639436,-500.0,0.00024931,2]
[355148582,1740936639446,-1401.29,0.00024931,2]
[355148584,1740936639458,-500.0,0.00024931,2]
[355148586,1740936639471,-500.0,0.00024931,2]
[355148589,1740936639487,-1973.31,0.00024931,2]
[355148591,1740936639498,-775.25,0.00024931,2]
[355148593,1740936639509,-7254.96,0.00024931,2]
[355148595,1740936639521,-500.0,0.00024931,2]
[355148597,1740936639534,-502.60691257,0.00024934,4]
[355148598,1740936639546,-274.69,0.00024965,2]
[355148601,1740936639559,-550.0,0.00025,2]
[355148603,1740936639571,-2522.27652003,0.00025,2]
[355148605,1740936639584,-1224.35915615,0.00025,10]
[355148608,1740936639688,-250.0,0.00025003,2]
[355148609,1740936639700,-159.24,0.00025066,2]
[355148610,1740936639712,-2799.181,0.00025072,2]
[355148611,1740936639723,-502.60691257,0.00025141,4]
[355148613,1740936639734,-200.0,0.00025161,2]
[355148615,1740936639745,-500.0,0.00025171,2]
[355148617,1740936639755,-505.79,0.00025171,2]
[355148619,1740936639765,-500.0,0.00025171,2]
[355148621,1740936639775,-500.0,0.00025172,2]
[355148623,1740936639785,-500.0,0.00025172,2]
[355148625,1740936639795,-500.0,0.00025172,2]
[355148627,1740936639804,-275.16,0.00025172,2]
[355148629,1740936639814,-500.0,0.00025172,2]
[355148631,1740936639826,-500.0,0.00025172,2]
[355148633,1740936639837,-500.0,0.00025172,2]
[355148636,1740936639849,-500.0,0.00025172,2]
[355148639,1740936639863,-500.0,0.00025172,2]
[355148642,1740936639875,-500.0,0.00025172,2]
[355148645,1740936639886,-500.0,0.00025172,2]
[355148648,1740936639898,-500.0,0.00025172,2]
[355148651,1740936639909,-500.0,0.00025172,2]
[355148654,1740936639920,-500.0,0.00025172,2]
[355148657,1740936639931,-500.0,0.00025172,2]
[355148661,1740936639945,-500.0,0.00025172,2]
[355148664,1740936639955,-500.0,0.00025172,2]